fUSD/lending_fUSD_20240719
["ID","MTS","AMOUNT","RATE_DAILY","PERIOD"]
[332647141,1721404255123,-1957.81,0.00033287,14]
[332647142,1721404255133,-500.0,0.00033287,14]
[332647143,1721404255142,-810.81,0.00033287,14]
[332647144,1721404255152,-1244.68,0.00033287,14]
[332647145,1721404255161,-844.39,0.00033287,14]
[332647146,1721404255171,-500.0,0.00033287,14]
[332647147,1721404255180,-117.5788296,0.00033287,14]
[332647148,1721404255192,-3470.7511704,0.00033287,14]
[332647149,1721404255201,-500.0,0.00033287,14]
[332647150,1721404255211,-1951.81,0.00033287,14]
[332647151,1721404255220,-854.9,0.00033287,14]
[332647152,1721404255230,-456.0191096,0.00033287,14]
[332647153,1721404255241,-564.299,0.00033287,14]
[332647154,1721404255252,-1498.69852761,0.00033287,14]
[332647155,1721404255263,-818.55008395,0.00033287,14]
[332647156,1721404255284,-568.88327884,0.00033287,14]
[332647157,1721404255293,-3507.5,0.00033287,14]
[332647158,1721404255303,-865.64,0.00033287,14]
[332647159,1721404255312,-2603.35,0.00033287,14]
[332647160,1721404255322,-1805.65,0.00033287,14]
[332647161,1721404255332,-6200.88,0.00033287,14]
[332647162,1721404255341,-1159.4,0.00033287,14]
[332647163,1721404255351,-500.0,0.00033287,14]
[332647164,1721404255360,-500.0,0.00033287,14]
[332647165,1721404255370,-896.2,0.00033287,14]
[332647166,1721404255380,-500.0,0.00033287,14]
[332647167,1721404255389,-2326.61,0.00033287,14]
[332647168,1721404255399,-5674.73,0.00033287,14]
[332647169,1721404255407,-1491.15672116,0.00033287,14]
[332647170,1721404255421,-328.69327884,0.00033287,14]
[332647171,1721404255430,-500.0,0.00033287,14]
[332647172,1721404255440,-5504.80672117,0.00033287,14]
[332647173,1721404255618,-295.21458624,0.00033287,14]
[332647174,1721404255631,-1158.3,0.00033287,14]
[332647175,1721404255642,-496.59074547,0.00033287,14]
[332647176,1721404255653,-262.347648,0.00033287,14]
[332647177,1721404255665,-274.68725396,0.00033287,14]
[332647178,1721404255677,-4869.34707227,0.00033287,14]
[332647179,1721404255688,-2690.25597289,0.00033287,14]
[332647180,1721404255698,-2542.41,0.00033287,14]
[332647181,1721404255707,-1130.18,0.00033287,14]
[332647182,1721404255717,-3436.5,0.00033287,14]
[332647183,1721404255726,-500.0,0.00033287,14]
[332647184,1721404255735,-500.0,0.00033287,14]
[332647185,1721404255745,-12275.18,0.00033287,14]
[332647186,1721404255754,-500.0,0.00033287,14]
[332647187,1721404255764,-500.0,0.00033287,14]
[332647188,1721404255775,-500.0,0.00033287,14]
[332647189,1721404255786,-540.53,0.00033287,14]
[332647190,1721404255796,-7174.87,0.00033287,14]
[332647191,1721404255806,-1873.05,0.00033287,14]
[332647192,1721404255815,-609.14,0.00033287,14]
[332647193,1721404255825,-500.0,0.00033287,14]
[332647194,1721404255835,-3712.54,0.00033287,14]
[332647195,1721404255845,-20243.8,0.00033287,14]
[332647196,1721404255854,-1743.57,0.00033287,14]
[332647197,1721404255864,-500.0,0.00033287,14]
[332647198,1721404255874,-794.64,0.00033287,14]
[332647199,1721404255887,-500.0,0.00033287,14]
[332647200,1721404255897,-3792.36,0.00033287,14]
[332647201,1721404255907,-5828.93,0.00033287,14]
[332647202,1721404255919,-522.89,0.00033287,14]
[332647203,1721404255930,-5889.56,0.00033287,14]
[332647204,1721404255940,-500.0,0.00033287,14]
[332647205,1721404255952,-525.83,0.00033287,14]
[332647206,1721404255964,-500.0,0.00033287,14]
[332647207,1721404255974,-10947.61,0.00033287,14]
[332647208,1721404255984,-11019.54,0.00033287,14]
[332647209,1721404255994,-5912.02,0.00033287,14]
[332647210,1721404256004,-500.0,0.00033287,14]
[332647211,1721404256014,-500.0,0.00033287,14]
[332647212,1721404256024,-500.0,0.00033287,14]
[332647213,1721404256035,-2246.16,0.00033287,14]
[332647214,1721404256044,-500.0,0.00033287,14]
[332647215,1721404256055,-8229.51,0.00033287,14]
[332647216,1721404256065,-4655.89,0.00033287,14]
[332647217,1721404256076,-500.0,0.00033287,14]
[332647218,1721404256086,-1033.47,0.00033287,14]
[332647219,1721404256097,-1465.61,0.00033287,14]
[332647220,1721404256107,-1464.16,0.00033287,14]
[332647221,1721404256118,-4196.57,0.00033287,14]
[332647222,1721404256129,-5345.19,0.00033287,14]
[332647223,1721404256140,-1910.19,0.00033287,14]
[332647224,1721404256150,-1194.16,0.00033287,14]
[332647225,1721404256160,-500.0,0.00033287,14]
[332647226,1721404256171,-573.17,0.00033287,14]
[332647227,1721404256182,-500.0,0.00033287,14]
[332647228,1721404256193,-10933.25,0.00033287,14]
[332647229,1721404256203,-500.0,0.00033287,14]
[332647230,1721404256213,-1409.33,0.00033287,14]
[332647231,1721404256222,-3674.93,0.00033287,14]
[332647232,1721404256232,-500.0,0.00033287,14]
[332647233,1721404256241,-1154.96,0.00033287,14]
[332647234,1721404256252,-3354.51,0.00033287,14]
[332647235,1721404256262,-4811.1,0.00033287,14]
[332647236,1721404256275,-1405.5,0.00033287,14]
[332647237,1721404256285,-735.83,0.00033287,14]
[332647238,1721404256295,-1524.71,0.00033287,14]
[332647239,1721404256305,-1682.97,0.00033287,14]
[332647240,1721404256319,-3837.86,0.00033287,14]
[332647241,1721404256329,-500.0,0.00033287,14]
[332647242,1721404256339,-5839.3,0.00033287,14]
[332647243,1721404256349,-500.0,0.00033287,14]
[332647244,1721404256359,-1215.13,0.00033287,14]
[332647245,1721404256368,-500.0,0.00033287,14]
[332647246,1721404256378,-5878.24,0.00033287,14]
[332647247,1721404256388,-500.0,0.00033287,14]
[332647248,1721404256398,-500.0,0.00033287,14]
[332647249,1721404256407,-500.0,0.00033287,14]
[332647250,1721404256417,-1263.94,0.00033287,14]
[332647251,1721404256428,-884.11,0.00033287,14]
[332647252,1721404256438,-500.0,0.00033287,14]
[332647253,1721404256448,-500.0,0.00033287,14]
[332647254,1721404256457,-500.0,0.00033287,14]
[332647255,1721404256467,-500.0,0.00033287,14]
[332647256,1721404256476,-1861.13,0.00033287,14]
[332647257,1721404256486,-500.0,0.00033287,14]
[332647258,1721404256495,-4030.15,0.00033287,14]
[332647259,1721404256505,-575.36,0.00033287,14]
[332647260,1721404256514,-1017.03,0.00033287,14]
[332647261,1721404256526,-500.0,0.00033287,14]
[332647262,1721404256536,-500.0,0.00033287,14]
[332647263,1721404256545,-1691.71,0.00033287,14]
[332647264,1721404256555,-500.0,0.00033287,14]
[332647265,1721404256564,-500.0,0.00033287,14]
[332647266,1721404256574,-1374.24,0.00033287,14]
[332647267,1721404256583,-768.4,0.00033287,14]
[332647268,1721404256593,-500.0,0.00033287,14]
[332647269,1721404256602,-1697.84,0.00033287,14]
[332647270,1721404256612,-2559.7,0.00033287,14]
[332647271,1721404256622,-500.0,0.00033287,14]
[332647272,1721404256632,-500.0,0.00033287,14]
[332647273,1721404256641,-500.0,0.00033287,14]
[332647274,1721404256651,-500.0,0.00033287,14]
[332647275,1721404256660,-500.0,0.00033287,14]
[332647276,1721404256670,-624.46,0.00033287,14]
[332647277,1721404256679,-500.0,0.00033287,14]
[332647278,1721404256689,-1946.59,0.00033287,14]
[332647279,1721404256700,-500.0,0.00033287,14]
[332647280,1721404256999,-500.0,0.00033287,14]
[332647281,1721404257010,-2272.36,0.00033287,14]
[332647282,1721404257021,-500.0,0.00033287,14]
[332647283,1721404257031,-500.0,0.00033287,14]
[332647284,1721404257041,-500.0,0.00033287,14]
[332647285,1721404257051,-500.0,0.00033287,14]
[332647286,1721404257060,-500.0,0.00033287,14]
[332647287,1721404257070,-1917.13,0.00033287,14]
[332647288,1721404257080,-500.0,0.00033287,14]
[332647289,1721404257091,-500.0,0.00033287,14]
[332647290,1721404257102,-500.0,0.00033287,14]
[332647291,1721404257112,-500.0,0.00033287,14]
[332647292,1721404257123,-500.0,0.00033287,14]
[332647293,1721404257132,-500.0,0.00033287,14]
[332647294,1721404257143,-500.0,0.00033287,14]
[332647295,1721404257152,-3027.94,0.00033287,14]
[332647296,1721404257161,-500.0,0.00033287,14]
[332647297,1721404257171,-973.22,0.00033287,14]
[332647298,1721404257180,-500.0,0.00033287,14]
[332647299,1721404257190,-500.0,0.00033287,14]
[332647300,1721404257199,-500.0,0.00033287,14]
[332647301,1721404257208,-500.0,0.00033287,14]
[332647302,1721404257218,-500.0,0.00033287,14]
[332647303,1721404257227,-500.0,0.00033287,14]
[332647304,1721404257237,-2408.88,0.00033287,14]
[332647305,1721404257246,-500.0,0.00033287,14]
[332647306,1721404257255,-500.0,0.00033287,14]
[332647307,1721404257265,-500.0,0.00033287,14]
[332647308,1721404257277,-500.0,0.00033287,14]
[332647309,1721404257287,-731.9,0.00033287,14]
[332647310,1721404257296,-646.1,0.00033287,14]
[332647311,1721404257306,-500.0,0.00033287,14]
[332647312,1721404257315,-586.55,0.00033287,14]
[332647313,1721404257325,-500.0,0.00033287,14]
[332647314,1721404257334,-500.0,0.00033287,14]
[332647315,1721404257343,-1178.13,0.00033287,14]
[332647316,1721404257353,-597.62,0.00033287,14]
[332647317,1721404257364,-441.8715433,0.00033287,14]
[332647318,1721404257373,-335.5809987,0.00033287,14]
[332647319,1721404257383,-2668.54,0.00033287,14]
[332647320,1721404257393,-833.33,0.00033287,14]
[332647321,1721404257402,-500.0,0.00033287,14]
[332647322,1721404257412,-500.0,0.00033287,14]
[332647323,1721404257422,-500.0,0.00033287,14]
[332647324,1721404257432,-500.0,0.00033287,14]
[332647325,1721404257441,-500.0,0.00033287,14]
[332647326,1721404257451,-500.0,0.00033287,14]
[332647327,1721404257460,-598.05,0.00033287,14]
[332647328,1721404257469,-500.0,0.00033287,14]
[332647329,1721404257479,-500.0,0.00033287,14]
[332647330,1721404257488,-155.38,0.00033287,14]
[332647331,1721404257498,-1314.6,0.00033287,14]
[332647332,1721404257507,-2734.59,0.00033287,14]
[332647333,1721404257517,-2830.23,0.00033287,14]
[332647334,1721404257528,-501.05030697,0.00033287,14]
[332647335,1721404257538,-632.52,0.00033287,14]
[332647336,1721404257547,-501.56669836,0.00033287,14]
[332647337,1721404257557,-1416.89,0.00033287,14]
[332647338,1721404257567,-695.28,0.00033287,120]
[332647339,1721404257576,-552.925333,0.00033287,14]
[332647340,1721404257586,-600.0,0.00033287,14]
[332647341,1721404257596,-500.0,0.00033287,14]
[332647342,1721404257606,-500.0,0.00033287,14]
[332647343,1721404257616,-1341.92,0.00033287,14]
[332647344,1721404257626,-500.0,0.00033287,14]
[332647345,1721404257635,-4660.25,0.00033287,14]
[332647346,1721404257644,-2241.29,0.00033287,14]
[332647347,1721404257654,-500.0,0.00033287,14]
[332647348,1721404257663,-500.0,0.00033287,14]
[332647349,1721404257672,-500.0,0.00033287,14]
[332647350,1721404257682,-500.0,0.00033287,14]
[332647351,1721404257691,-500.0,0.00033287,14]
[332647352,1721404257701,-500.0,0.00033287,14]
[332647353,1721404257710,-957.11,0.00033287,14]
[332647354,1721404257720,-877.56,0.00033287,14]
[332647355,1721404257729,-506.68547148,0.00033287,14]
[332647356,1721404257739,-500.0,0.00033287,14]
[332647357,1721404257748,-1477.9,0.00033287,14]
[332647358,1721404257759,-500.0,0.00033287,14]
[332647359,1721404257768,-500.0,0.00033287,14]
[332647360,1721404257779,-500.0,0.00033287,14]
[332647361,1721404257788,-597.23,0.00033287,14]
[332647362,1721404257798,-500.0,0.00033287,14]
[332647363,1721404257808,-689.3,0.00033287,14]
[332647364,1721404257817,-1046.23,0.00033287,14]
[332647365,1721404257827,-1705.13,0.00033287,14]
[332647366,1721404257836,-500.0,0.00033287,14]
[332647367,1721404257846,-778.74,0.00033287,14]
[332647368,1721404257856,-679.86,0.00033287,14]
[332647369,1721404257867,-500.0,0.00033287,14]
[332647370,1721404257878,-501.65401384,0.00033287,14]
[332647371,1721404257890,-542.8,0.00033287,14]
[332647372,1721404257900,-500.0,0.00033287,14]
[332647373,1721404257910,-500.0,0.00033287,14]
[332647374,1721404257920,-500.0,0.00033287,14]
[332647375,1721404257931,-500.0,0.00033287,14]
[332647376,1721404257941,-500.0,0.00033287,14]
[332647377,1721404257953,-500.0,0.00033287,14]
[332647378,1721404257966,-500.0,0.00033287,14]
[332647379,1721404257977,-500.0,0.00033287,14]
[332647380,1721404257986,-500.0,0.00033287,14]
[332647381,1721404257997,-843.49,0.00033287,14]
[332647382,1721404258007,-500.0,0.00033287,14]
[332647383,1721404258019,-500.0,0.00033287,14]
[332647384,1721404258030,-500.0,0.00033287,14]
[332647385,1721404258039,-500.0,0.00033287,14]
[332647386,1721404258049,-500.0,0.00033287,14]
[332647387,1721404258059,-243.57,0.00033287,14]
[332647388,1721404258069,-500.0,0.00033287,14]
[332647389,1721404258079,-500.0,0.00033287,14]
[332647390,1721404258088,-500.0,0.00033287,14]
[332647391,1721404258098,-500.0,0.00033287,14]
[332647392,1721404258108,-500.0,0.00033287,14]
[332647393,1721404258117,-500.0,0.00033287,14]
[332647394,1721404258127,-410.19,0.00033287,14]
[332647395,1721404258136,-406.95289079,0.00033287,14]
[332647396,1721404258146,-503.49678915,0.00033287,14]
[332647397,1721404258156,-500.0,0.00033287,14]
[332647398,1721404258165,-155.70787799,0.00033287,14]
[332647399,1721404258175,-503.34007782,0.00033287,14]
[332647400,1721404258185,-500.0,0.00033287,14]
[332647401,1721404258195,-500.0,0.00033287,14]
[332647402,1721404258204,-360.16556646,0.00033287,14]
[332647403,1721404258213,-500.0,0.00033287,14]
[332647404,1721404258223,-500.0,0.00033287,14]
[332647405,1721404258233,-373.05,0.00033287,14]
[332647406,1721404258242,-500.0,0.00033287,14]
[332647407,1721404258252,-500.0,0.00033287,14]
[332647408,1721404258262,-500.0,0.00033287,14]
[332647409,1721404258273,-500.0,0.00033287,14]
[332647410,1721404258283,-500.0,0.00033287,14]
[332647411,1721404258293,-754.08,0.00033287,14]
[332647412,1721404258303,-602.06875803,0.00033287,2]
[332647413,1721404258312,-370.76,0.00033287,14]
[332647414,1721404258322,-500.0,0.00033287,14]
[332647415,1721404258332,-151.0,0.00033287,7]
[332647416,1721404258342,-151.0,0.00033287,7]
[332647417,1721404258352,-151.0,0.00033287,7]
[332647418,1721404258362,-151.0,0.00033287,7]
[332647419,1721404258372,-325.6130101,0.00033287,7]
[332647420,1721404258389,-24.3869899,0.00033287,7]
[332647421,1721404258399,-256.2730101,0.00033287,7]
[332647424,1721404401701,-160.0513,0.00016904,2]
[332647425,1721404401722,-311.50758691,0.00016951,2]
[332647426,1721404401743,-262.80843173,0.00018081,2]
[332647427,1721404401766,-300.0,0.00019725,2]
[332647428,1721404414393,-420.0,0.00021484,2]
[332647429,1721404419275,-587.0,0.00023401,2]
[332647430,1721404424085,-172.2,0.00025231,2]
[332647431,1721404424108,-823.0,0.00025488,2]
[332647432,1721404424130,-160.83864899,0.00026308,2]
[332647433,1721404424157,-151.81260137,0.00026454,2]
[332647434,1721404424177,-500.0,0.00026711,2]
[332647435,1721404424198,-160.83864899,0.00026783,2]
[332647436,1721404424473,700.0,0.00026711,2]
[332647480,1721405431517,-150.0,0.00015,2]
[332647482,1721405431527,-200.0,0.00017,2]
[332647484,1721405431536,-2022.0,0.000186,3]
[332647485,1721405431545,-250.0,0.00019,2]
[332647486,1721405431555,-262.80843173,0.00019387,2]
[332647487,1721405431564,-300.0,0.00019451,2]
[332647488,1721405431573,-499.99,0.0002012,2]
[332647489,1721405431582,-162.14215493,0.00020339,2]
[332647490,1721405431592,-300.0,0.00021,2]
[332647491,1721405431603,-420.0,0.00021192,2]
[332647492,1721405431612,-258.75,0.00021644,2]
[332647493,1721405431621,-350.0,0.00023,2]
[332647494,1721405431630,-587.0,0.00023088,2]
[332647495,1721405431639,-172.2,0.00023892,2]
[332647496,1721405431649,-19649.39918542,0.00024979,2]
[332647497,1721405431658,-333.64070507,0.00024999,2]
[332647498,1721405431670,-10520.15275895,0.00024999,2]
[332647499,1721405431747,-4299.58305785,0.00024999,2]
[332647500,1721405431756,-2319.38594215,0.00024999,2]
[332647501,1721405431838,-13132.54585905,0.00024999,2]
[332647502,1721405431849,-400.0,0.00025,2]
[332647503,1721405431859,-823.0,0.00025155,2]
[332647504,1721405431869,-344.86,0.00025619,2]
[332647505,1721405431879,-155.13031876,0.00025878,2]
[332647506,1721405431889,-1023.87298556,0.00026177,2]
[332647507,1721405431899,-1803.82148492,0.00026177,2]
[332647508,1721405431909,-304.28,0.00026237,2]
[332647509,1721405431919,-300.0,0.0002663,2]
[332647510,1721405431929,-482.10707866,0.0002671,2]
[332647511,1721405431939,-10188.53027304,0.00026711,2]
[332647532,1721405437565,-1894.96154671,0.00026631,2]
[332647535,1721405437577,-362.70058116,0.00026631,2]
[332647538,1721405437620,-4052.72401042,0.00026631,2]
[332647539,1721405437632,-884.28338425,0.00026631,2]
[332647540,1721405437644,-290.0640776,0.00026631,2]
[332647541,1721405437674,-3045.63037594,0.00026631,2]
[332647542,1721405437683,-14486.74461361,0.00026711,2]
[332647543,1721405437693,-500.0,0.00026711,2]
[332647544,1721405437703,-619.24733185,0.00026711,2]
[332647545,1721405437712,-1761.75637949,0.00026779,2]
[332647546,1721405437721,-5607.32059616,0.00026788,2]
[332647547,1721405437731,-1470.64945161,0.00026788,2]
[332647548,1721405437740,-356.83039399,0.0002679,2]
[332647549,1721405437750,-412.85217837,0.0002679,2]
[332647550,1721405437759,-155.85581322,0.0002679,2]
[332647551,1721405437769,-410.68942561,0.0002679,2]
[332647552,1721405437778,-155.69072934,0.0002679,2]
[332647553,1721405437788,-602.53,0.00026806,2]
[332647554,1721405437798,-311.50758691,0.00026828,2]
[332647555,1721405437808,-369.63828489,0.00026828,2]
[332647556,1721405437817,-1295.47647807,0.00026828,2]
[332647557,1721405437829,-569.78816292,0.00026828,2]
[332647558,1721405437841,-1272.79999976,0.00026828,2]
[332647559,1721405437856,-260.88636158,0.00026828,2]
[332647560,1721405437866,-162.8847396,0.00026828,2]
[332647561,1721405437875,-538.87014568,0.00026847,2]
[332647562,1721405437885,-155.0,0.00026847,2]
[332647563,1721405437895,-648.77222737,0.00026847,2]
[332647564,1721405437905,-231.32570794,0.00026847,2]
[332647565,1721405437915,-227.43774807,0.00026847,5]
[332647566,1721405437925,-500.0,0.00026847,2]
[332647567,1721405437934,-1000.0,0.00026869,2]
[332647568,1721405437944,-156.26491685,0.00026951,2]
[332647569,1721405437954,-450.0,0.00027,2]
[332647570,1721405437963,-160.83864899,0.00027012,2]
[332647571,1721405437973,-164.9,0.00027159,2]
[332647572,1721405437982,-164.9,0.00027204,2]
[332647573,1721405437992,-164.9,0.00027249,2]
[332647574,1721405438001,-662.55715386,0.00027259,2]
[332647575,1721405438013,-37.44284614,0.00027259,2]
[332647576,1721405438022,-164.9,0.00027295,2]
[332647577,1721405438032,-160.83864899,0.00027298,2]
[332647578,1721405438041,-1671.32471042,0.00027397,10]
[332647579,1721405438052,-1071.06528958,0.00027397,10]
[332647581,1721405438062,-559.09049729,0.00027406,2]
[332647583,1721405438077,-592.90950271,0.00027406,2]
[332647585,1721405438086,-60.7695099,0.00027414,2]
[332647587,1721405438098,-891.4304901,0.00027414,2]
[332647589,1721405438110,-168.32,0.00027435,2]
[332647591,1721405438119,-1000.0,0.00027468,120]
[332647593,1721405438129,-151.81260137,0.00027698,2]
[332647595,1721405438138,-160.83864899,0.00027709,2]
[332647598,1721405438149,-258.75,0.00027714,2]
[332647600,1721405438159,-700.0,0.00027807,2]
[332647602,1721405438168,-404.38734655,0.00027807,2]
[332647631,1721405438973,-95.61265345,0.00027807,2]
[332647632,1721405438982,-344.86,0.00027883,2]
[332647633,1721405438992,-308.78185671,0.00027989,2]
[332647634,1721405439003,-1254.63523304,0.00027989,2]
[332647635,1721405439013,-637.88,0.00028001,2]
[332647636,1721405439022,-151.42136549,0.00028181,2]
[332647637,1721405439031,-425.98,0.00028187,2]
[332647638,1721405439041,-23900.0,0.00028208,2]
[332647639,1721405439050,-1237.4,0.00028225,2]
[332647640,1721405439060,-700.0,0.00028355,2]
[332647641,1721405439070,-157.76751704,0.00028399,2]
[332647642,1721405439079,-250.0,0.00028434,2]
[332647643,1721405439089,-181.96,0.00028467,2]
[332647644,1721405439099,-700.0,0.00028903,2]
[332647645,1721405439114,-500.0,0.00029,2]
[332647646,1721405439123,-165.02013104,0.00029284,2]
[332647647,1721405439132,-700.0,0.00029451,2]
[332647648,1721405439142,-151.42136549,0.00029452,2]
[332647649,1721405439151,-707.81617979,0.00029535,15]
[332647650,1721405439160,-169.01,0.00029619,2]
[332647651,1721405439170,-11040.92079686,0.00029622,2]
[332647652,1721405439181,-985.3255164,0.00029622,2]
[332647653,1721405439193,-816.07128584,0.00029622,2]
[332647654,1721405439204,-447.3794009,0.00029622,2]
[332647655,1721405439215,-175.77,0.00029635,120]
[332647656,1721405439225,-306.49145131,0.0002981,2]
[332647657,1721405439240,-290.51510183,0.00029859,2]
[332647658,1721405439254,-678.48489817,0.00029859,2]
[332647659,1721405439264,-181.96,0.0002989,2]
[332647660,1721405439275,-700.0,0.00029999,2]
[332647661,1721405439287,-707.81617979,0.00030078,15]
[332647662,1721405439296,-165.2,0.00030094,2]
[332647663,1721405439306,-344.86,0.00030147,2]
[332647664,1721405439319,-402.41974944,0.00030157,2]
[332647665,1721405439337,-250.0,0.00028933,2]
[332647666,1721405439347,-200.11025056,0.00030157,2]
[332647667,1721405439357,-500.0,0.00030235,2]
[332647668,1721405439367,-165.2,0.00030245,2]
[332647669,1721405439379,-2174.18283487,0.00030558,2]
[332647670,1721405439389,-2174.18283487,0.00030558,2]
[332647671,1721405439400,-707.81617979,0.00030621,15]
[332647672,1721405439410,-152.116794,0.0003086,7]
[332647673,1721405439421,-550.0,0.00031,2]
[332647675,1721405439431,-700.0,0.00031095,10]
[332647676,1721405439443,-707.81617979,0.00031163,15]
[332647677,1721405439454,-181.96,0.00031313,2]
[332647678,1721405439464,-629.7,0.000316,2]
[332647679,1721405439473,-707.81617979,0.00031706,15]
[332647681,1721405439484,-2150.3034,0.00031785,2]
[332647682,1721405439496,-153.0,0.00031869,2]
[332647683,1721405439507,-153.0,0.00031869,2]
[332647684,1721405439516,-153.0,0.00031869,2]
[332647685,1721405439527,-153.0,0.00031881,2]
[332647687,1721405439537,-153.0,0.00031881,2]
[332647688,1721405439546,-153.0,0.00031881,2]
[332647689,1721405439556,-153.0,0.00031892,2]
[332647690,1721405439566,-153.0,0.00031892,2]
[332647691,1721405439575,-153.0,0.00031892,2]
[332647692,1721405439585,-153.0,0.00031902,2]
[332647693,1721405439595,-153.0,0.00031902,2]
[332647695,1721405439605,-153.0,0.00031902,2]
[332647697,1721405439614,-500.0,0.00032,2]
[332647699,1721405439623,-2000.0,0.00032,120]
[332647701,1721405439633,-241.72905734,0.00032191,10]
[332647703,1721405439649,-458.27094266,0.00032191,10]
[332647705,1721405439659,-707.81617979,0.00032249,15]
[332647707,1721405439670,-344.86,0.00032411,2]
[332647709,1721405439679,-1014.18806085,0.00032621,5]
[332647711,1721405439689,-181.96,0.00032737,2]
[332647714,1721405439700,-1927.5656,0.00032776,2]
[332647715,1721405439710,-707.81617979,0.00032792,15]
[332647717,1721405439721,-1004.48,0.000328,2]
[332647719,1721405439730,-305.44,0.000328,2]
[332647721,1721405439740,-500.0,0.00032821,30]
[332647723,1721405439750,-590.75,0.00032821,30]
[332647725,1721405439760,-515.74074279,0.00032876,14]
[332647727,1721405439770,-500.0,0.00032876,14]
[332647729,1721405439780,-903.09,0.00032876,14]
[332647731,1721405439790,-2912.7,0.00032876,14]
[332647733,1721405439799,-500.0,0.00032876,14]
[332647735,1721405439809,-1000.0,0.00032876,2]
[332647737,1721405439819,-476.78429844,0.00032876,14]
[332647739,1721405439829,-500.0,0.00032876,14]
[332647741,1721405439839,-500.0,0.00032876,7]
[332647742,1721405439849,-803.41,0.00032876,14]
[332647743,1721405439860,-500.0,0.00032958,33]
[332647744,1721405439870,-590.75,0.00032958,33]
[332647745,1721405439879,-2000.0,0.00033,9]
[332647746,1721405439888,-332.45283896,0.00033,2]
[332647747,1721405439900,-267.54716104,0.00033,2]
[332647748,1721405439909,-1335.65283906,0.00033,9]
[332647749,1721405439921,-664.34716094,0.00033,9]
[332647750,1721405439931,-404.0,0.00033,22]
[332647751,1721405439940,-903.09,0.00033013,14]
[332647752,1721405439950,-2912.7,0.00033013,14]
[332647753,1721405439960,-500.0,0.00033013,14]
[332647754,1721405439971,-1000.0,0.00033013,2]
[332647755,1721405439983,-353.41,0.00033013,14]
[332647756,1721405439993,-500.0,0.00033013,7]
[332647757,1721405440004,-803.41,0.00033013,14]
[332647758,1721405440015,-500.0,0.00033013,14]
[332647759,1721405440025,-500.0,0.00033013,14]
[332647760,1721405440035,-500.0,0.00033013,14]
[332647761,1721405440047,-500.0,0.00033013,14]
[332647762,1721405440059,-500.0,0.00033013,14]
[332647763,1721405440070,-500.0,0.00033013,14]
[332647764,1721405440081,-500.0,0.00033013,14]
[332647765,1721405440092,-500.0,0.00033013,14]
[332647766,1721405440103,-500.0,0.00033013,14]
[332647767,1721405440112,-500.0,0.00033013,14]
[332647768,1721405440121,-500.0,0.00033013,14]
[332647769,1721405440130,-500.0,0.00033013,14]
[332647770,1721405440140,-500.0,0.00033013,14]
[332647771,1721405440149,-500.0,0.00033013,14]
[332647772,1721405440159,-500.0,0.00033013,14]
[332647773,1721405440168,-500.0,0.00033013,14]
[332647774,1721405440178,-500.0,0.00033013,14]
[332647775,1721405440187,-500.0,0.00033013,14]
[332647776,1721405440196,-500.0,0.00033013,14]
[332647777,1721405440205,-500.0,0.00033013,14]
[332647778,1721405440216,-500.0,0.00033013,14]